[Event "Titled Tuesday Blitz March 07 Early 2023"]
[White "Zhukova, Natalia"]
[Black "Orozbaev, Eldiar"]
[WhiteFideId "14101513"]
[BlackFideId "13802240"]
[WhiteElo "2297"]
[BlackElo "2201"]
[Result "1-0"]
[Round "02"]
[TimeControl "180+2"]
[Date "2023.03.07"]
[WhiteClock "0:00:04"]
[BlackClock "0:00:06"]

1. c4 {[%clk 0:02:56]}  b6 {[%clk 0:02:57]} 2. e4 {[%clk 0:02:56]}  Bb7 {[%clk 0:02:57]} 3. Nc3 {[%clk 0:02:56]}  e5 {[%clk 0:02:57]} 4. Nf3 {[%clk 0:02:52]}  Nc6 {[%clk 0:02:58]} 5. Be2 {[%clk 0:02:38]}  Bc5 {[%clk 0:02:53]} 6. Nxe5 {[%clk 0:02:31]}  Nxe5 {[%clk 0:02:30]} 7. d4 {[%clk 0:02:31]}  Bd6 {[%clk 0:02:31]} 8. dxe5 {[%clk 0:02:27]}  Bxe5 {[%clk 0:02:31]} 9. O-O {[%clk 0:02:25]}  Nf6 {[%clk 0:02:30]} 10. Nd5 {[%clk 0:02:09]}  Nxd5 {[%clk 0:02:30]} 11. cxd5 {[%clk 0:02:06]}  O-O {[%clk 0:02:29]} 12. f4 {[%clk 0:02:01]}  Bd6 {[%clk 0:02:29]} 13. e5 {[%clk 0:01:50]}  Bc5+ {[%clk 0:02:30]} 14. Kh1 {[%clk 0:01:51]}  d6 {[%clk 0:02:18]} 15. Bf3 {[%clk 0:01:42]}  Re8 {[%clk 0:02:16]} 16. e6 {[%clk 0:01:23]}  fxe6 {[%clk 0:02:16]} 17. dxe6 {[%clk 0:01:24]}  Bxf3 {[%clk 0:01:33]} 18. Qxf3 {[%clk 0:01:25]}  Qf6 {[%clk 0:01:34]} 19. f5 {[%clk 0:01:17]}  Rad8 {[%clk 0:01:34]} 20. Rb1 {[%clk 0:01:12]}  d5 {[%clk 0:01:33]} 21. b4 {[%clk 0:01:10]}  Bd4 {[%clk 0:01:33]} 22. b5 {[%clk 0:01:05]}  Be5 {[%clk 0:01:32]} 23. Qg4 {[%clk 0:01:01]}  h6 {[%clk 0:01:32]} 24. Bf4 {[%clk 0:00:57]}  Bxf4 {[%clk 0:01:27]} 25. Qxf4 {[%clk 0:00:57]}  d4 {[%clk 0:01:28]} 26. Qxc7 {[%clk 0:00:54]}  d3 {[%clk 0:01:28]} 27. Rbd1 {[%clk 0:00:52]}  d2 {[%clk 0:00:59]} 28. h3 {[%clk 0:00:52]}  Rd5 {[%clk 0:00:53]} 29. Qxa7 {[%clk 0:00:45]}  Rxf5 {[%clk 0:00:48]} 30. Qf7+ {[%clk 0:00:31]}  Qxf7 {[%clk 0:00:26]} 31. exf7+ {[%clk 0:00:32]}  Rxf7 {[%clk 0:00:27]} 32. Rxf7 {[%clk 0:00:32]}  Kxf7 {[%clk 0:00:27]} 33. Rxd2 {[%clk 0:00:32]}  Re5 {[%clk 0:00:28]} 34. a4 {[%clk 0:00:31]}  Ke6 {[%clk 0:00:28]} 35. Rc2 {[%clk 0:00:28]}  Kd5 {[%clk 0:00:24]} 36. Rc6 {[%clk 0:00:27]}  Re6 {[%clk 0:00:19]} 37. Rc7 {[%clk 0:00:18]}  g5 {[%clk 0:00:19]} 38. Kh2 {[%clk 0:00:17]}  h5 {[%clk 0:00:19]} 39. Kg3 {[%clk 0:00:17]}  Re3+ {[%clk 0:00:19]} 40. Kf2 {[%clk 0:00:17]}  Ra3 {[%clk 0:00:20]} 41. Rg7 {[%clk 0:00:15]}  Ra2+ {[%clk 0:00:16]} 42. Kf3 {[%clk 0:00:15]}  Ra3+ {[%clk 0:00:14]} 43. Kf2 {[%clk 0:00:15]}  Ra2+ {[%clk 0:00:14]} 44. Kg3 {[%clk 0:00:15]}  h4+ {[%clk 0:00:11]} 45. Kh2 {[%clk 0:00:13]}  Rxa4 {[%clk 0:00:11]} 46. Rxg5+ {[%clk 0:00:13]}  Kc4 {[%clk 0:00:12]} 47. Rh5 {[%clk 0:00:10]}  Kb3 {[%clk 0:00:08]} 48. Rh6 {[%clk 0:00:10]}  Rb4 {[%clk 0:00:06]} 49. Rxb6 {[%clk 0:00:11]}  Kc3 {[%clk 0:00:07]} 50. Rb8 {[%clk 0:00:11]}  Kd4 {[%clk 0:00:05]} 51. Kg1 {[%clk 0:00:10]}  Ke5 {[%clk 0:00:04]} 52. Kf2 {[%clk 0:00:10]}  Rb3 {[%clk 0:00:05]} 53. Ke2 {[%clk 0:00:10]}  Kd6 {[%clk 0:00:03]} 54. b6 {[%clk 0:00:08]}  Rb2+ {[%clk 0:00:02]} 55. Kf3 {[%clk 0:00:08]}  Rb4 {[%clk 0:00:03]} 56. Rh8 {[%clk 0:00:04]}  Ke5 {[%clk 0:00:02]} 57. Rh6 {[%clk 0:00:03]}  Kf5 {[%clk 0:00:02]} 58. Rc6 {[%clk 0:00:03]}  Rb3+ {[%clk 0:00:02]} 59. Ke2 {[%clk 0:00:02]}  Kf4 {[%clk 0:00:03]} 60. Kd2 {[%clk 0:00:03]}  Kg3 {[%clk 0:00:03]} 61. Rc3+ {[%clk 0:00:02]}  Rxc3 {[%clk 0:00:01]} 62. Kxc3 {[%clk 0:00:03]}  Kxg2 {[%clk 0:00:02]} 63. b7 {[%clk 0:00:04]}  Kxh3 {[%clk 0:00:03]} 64. b8=Q {[%clk 0:00:04]}  Kg2 {[%clk 0:00:04]} 65. Qg8+ {[%clk 0:00:04]}  Kh2 {[%clk 0:00:04]} 66. Qb8+ {[%clk 0:00:04]}  Kg2 {[%clk 0:00:04]} 67. Qg8+ {[%clk 0:00:04]}  Kh2 {[%clk 0:00:04]} 68. Qg4 {[%clk 0:00:04]}  h3 {[%clk 0:00:05]} 69. Qe2+ {[%clk 0:00:04]}  Kg1 {[%clk 0:00:05]} 70. Qe3+ {[%clk 0:00:04]}  Kg2 {[%clk 0:00:05]} 71. Qg5+ {[%clk 0:00:04]}  Kf2 {[%clk 0:00:05]} 72. Qf4+ {[%clk 0:00:04]}  Kg2 {[%clk 0:00:06]} 73. Qg4+ {[%clk 0:00:04]}  Kh2 {[%clk 0:00:06]} 74. Kd3 {[%clk 0:00:04]} 1-0


[Site "https://www.chess.com"]

[Event "Titled Tuesday Blitz March 07 Early 2023"]
[White "Shubenkova, Veronika"]
[Black "EREBUNI91"]
[WhiteFideId "44124040"]
[WhiteElo "2027"]
[BlackElo "2729"]
[Result "1/2-1/2"]
[Round "02"]
[TimeControl "180+2"]
[Date "2023.03.07"]
[WhiteClock "0:01:58"]
[BlackClock "0:01:12"]

1. e4 {[%clk 0:03:00]}  c5 {[%clk 0:03:00]} 2. Nc3 {[%clk 0:03:00]}  d6 {[%clk 0:03:01]} 3. g3 {[%clk 0:03:01]}  g6 {[%clk 0:03:01]} 4. Bg2 {[%clk 0:03:02]}  Bg7 {[%clk 0:03:02]} 5. d3 {[%clk 0:03:02]}  Nc6 {[%clk 0:03:02]} 6. f4 {[%clk 0:03:03]}  e6 {[%clk 0:03:03]} 7. h3 {[%clk 0:03:03]}  Nge7 {[%clk 0:03:04]} 8. Nf3 {[%clk 0:03:04]}  O-O {[%clk 0:03:04]} 9. Be3 {[%clk 0:03:04]}  Nd4 {[%clk 0:03:04]} 10. Bf2 {[%clk 0:03:03]}  Nec6 {[%clk 0:03:03]} 11. O-O {[%clk 0:03:03]}  Nxf3+ {[%clk 0:03:01]} 12. Bxf3 {[%clk 0:03:03]}  Nd4 {[%clk 0:03:02]} 13. Bg2 {[%clk 0:03:03]}  Bd7 {[%clk 0:03:00]} 14. Rb1 {[%clk 0:03:03]}  b5 {[%clk 0:03:00]} 15. Ne2 {[%clk 0:03:04]}  Nxe2+ {[%clk 0:03:00]} 16. Qxe2 {[%clk 0:03:05]}  Bc6 {[%clk 0:03:00]} 17. g4 {[%clk 0:03:03]}  f5 {[%clk 0:03:00]} 18. gxf5 {[%clk 0:03:00]}  exf5 {[%clk 0:03:01]} 19. e5 {[%clk 0:02:59]}  Bxg2 {[%clk 0:02:59]} 20. Kxg2 {[%clk 0:03:00]}  dxe5 {[%clk 0:03:00]} 21. fxe5 {[%clk 0:02:58]}  Qd5+ {[%clk 0:03:00]} 22. Qf3 {[%clk 0:02:57]}  Qxf3+ {[%clk 0:03:00]} 23. Kxf3 {[%clk 0:02:56]}  Bxe5 {[%clk 0:03:01]} 24. Bxc5 {[%clk 0:02:56]}  Rfc8 {[%clk 0:02:58]} 25. d4 {[%clk 0:02:56]}  Bf6 {[%clk 0:02:51]} 26. c3 {[%clk 0:02:56]}  Kf7 {[%clk 0:02:50]} 27. Rfe1 {[%clk 0:02:56]}  Re8 {[%clk 0:02:49]} 28. b3 {[%clk 0:02:54]}  a6 {[%clk 0:02:42]} 29. a4 {[%clk 0:02:46]}  Be7 {[%clk 0:02:35]} 30. Bxe7 {[%clk 0:02:32]}  Rxe7 {[%clk 0:02:33]} 31. Rxe7+ {[%clk 0:02:32]}  Kxe7 {[%clk 0:02:34]} 32. Re1+ {[%clk 0:02:32]}  Kd6 {[%clk 0:02:34]} 33. axb5 {[%clk 0:02:32]}  axb5 {[%clk 0:02:35]} 34. Re5 {[%clk 0:02:32]}  b4 {[%clk 0:02:31]} 35. c4 {[%clk 0:02:32]}  Ra3 {[%clk 0:02:27]} 36. Re3 {[%clk 0:02:31]}  g5 {[%clk 0:02:26]} 37. Rd3 {[%clk 0:02:30]}  h5 {[%clk 0:02:25]} 38. Kg3 {[%clk 0:02:30]}  Ra1 {[%clk 0:02:24]} 39. Kf3 {[%clk 0:02:24]}  Rh1 {[%clk 0:02:23]} 40. Kg2 {[%clk 0:02:24]}  Rc1 {[%clk 0:02:23]} 41. Rf3 {[%clk 0:02:19]}  f4 {[%clk 0:02:23]} 42. h4 {[%clk 0:02:17]}  Rc2+ {[%clk 0:02:10]} 43. Kh1 {[%clk 0:02:17]}  Rc3 {[%clk 0:02:06]} 44. Kg2 {[%clk 0:02:13]}  Rc2+ {[%clk 0:01:37]} 45. Kh1 {[%clk 0:02:13]}  Ke6 {[%clk 0:01:30]} 46. hxg5 {[%clk 0:02:10]}  Kf5 {[%clk 0:01:30]} 47. g6 {[%clk 0:02:03]}  Kxg6 {[%clk 0:01:14]} 48. Rxf4 {[%clk 0:02:01]}  Rc3 {[%clk 0:01:14]} 49. d5 {[%clk 0:02:00]}  Rxb3 {[%clk 0:01:14]} 50. c5 {[%clk 0:02:00]}  Rd3 {[%clk 0:01:12]} 51. Rxb4 {[%clk 0:01:58]}  Rxd5 {[%clk 0:01:11]} 52. Rc4 {[%clk 0:01:58]}  Rd8 {[%clk 0:01:11]} 53. Kh2 {[%clk 0:01:58]}  Rc8 {[%clk 0:01:12]} 54. c6 {[%clk 0:01:58]}  Kf5 {[%clk 0:01:13]} 55. Rc5+ {[%clk 0:01:58]}  Ke6 {[%clk 0:01:12]} 1/2-1/2


[Site "https://www.chess.com"]

[Event "Titled Tuesday Blitz March 07 Early 2023"]
[White "Mayaud, Raphael"]
[Black "Karthik Rajaa"]
[WhiteFideId "627151"]
[BlackFideId "25035215"]
[WhiteElo "2191"]
[BlackElo "2215"]
[Result "1/2-1/2"]
[Round "02"]
[TimeControl "180+2"]
[Date "2023.03.07"]
[WhiteClock "0:00:04"]
[BlackClock "0:00:12"]

1. d4 {[%clk 0:02:59]}  Nf6 {[%clk 0:02:59]} 2. Nf3 {[%clk 0:02:59]}  g6 {[%clk 0:02:59]} 3. e3 {[%clk 0:02:58]}  Bg7 {[%clk 0:03:00]} 4. Be2 {[%clk 0:02:59]}  O-O {[%clk 0:03:00]} 5. O-O {[%clk 0:02:59]}  d6 {[%clk 0:03:01]} 6. b3 {[%clk 0:02:58]}  Nbd7 {[%clk 0:03:01]} 7. Bb2 {[%clk 0:02:58]}  e5 {[%clk 0:03:00]} 8. dxe5 {[%clk 0:02:58]}  Ng4 {[%clk 0:02:49]} 9. c4 {[%clk 0:02:58]}  Ngxe5 {[%clk 0:02:48]} 10. Nxe5 {[%clk 0:02:50]}  dxe5 {[%clk 0:02:48]} 11. Qc2 {[%clk 0:02:48]}  Nc5 {[%clk 0:02:47]} 12. Rd1 {[%clk 0:02:42]}  Qe7 {[%clk 0:02:40]} 13. Nc3 {[%clk 0:02:30]}  c6 {[%clk 0:02:37]} 14. b4 {[%clk 0:02:12]}  Ne6 {[%clk 0:02:21]} 15. Qb3 {[%clk 0:02:00]}  f5 {[%clk 0:02:10]} 16. Bf1 {[%clk 0:01:06]}  Nc7 {[%clk 0:02:08]} 17. c5+ {[%clk 0:01:00]}  Be6 {[%clk 0:02:06]} 18. Bc4 {[%clk 0:01:00]}  Rfd8 {[%clk 0:01:58]} 19. h3 {[%clk 0:00:58]}  Bxc4 {[%clk 0:01:26]} 20. Qxc4+ {[%clk 0:00:58]}  Qe6 {[%clk 0:01:26]} 21. Qxe6+ {[%clk 0:00:56]}  Nxe6 {[%clk 0:01:27]} 22. Ne2 {[%clk 0:00:54]}  Kf7 {[%clk 0:01:23]} 23. Kf1 {[%clk 0:00:54]}  Ke7 {[%clk 0:01:18]} 24. Ke1 {[%clk 0:00:52]}  Rxd1+ {[%clk 0:01:19]} 25. Rxd1 {[%clk 0:00:52]}  a5 {[%clk 0:01:19]} 26. a3 {[%clk 0:00:43]}  axb4 {[%clk 0:01:18]} 27. axb4 {[%clk 0:00:44]}  Nc7 {[%clk 0:01:18]} 28. Ra1 {[%clk 0:00:37]}  Rxa1+ {[%clk 0:00:57]} 29. Bxa1 {[%clk 0:00:38]}  Nd5 {[%clk 0:00:51]} 30. Bc3 {[%clk 0:00:38]}  Nxc3 {[%clk 0:00:52]} 31. Nxc3 {[%clk 0:00:38]}  e4 {[%clk 0:00:53]} 32. Kd2 {[%clk 0:00:20]}  Ke6 {[%clk 0:00:52]} 33. Kc2 {[%clk 0:00:20]}  g5 {[%clk 0:00:45]} 34. Kb3 {[%clk 0:00:19]}  h5 {[%clk 0:00:39]} 35. Kc4 {[%clk 0:00:18]}  Bxc3 {[%clk 0:00:34]} 36. Kxc3 {[%clk 0:00:18]}  Kd5 {[%clk 0:00:34]} 37. g3 {[%clk 0:00:17]}  h4 {[%clk 0:00:29]} 38. gxh4 {[%clk 0:00:16]}  gxh4 {[%clk 0:00:29]} 39. Kb3 {[%clk 0:00:16]}  Ke5 {[%clk 0:00:23]} 40. Kc3 {[%clk 0:00:15]}  Kd5 {[%clk 0:00:18]} 41. Kb3 {[%clk 0:00:15]}  Ke5 {[%clk 0:00:19]} 42. Kc4 {[%clk 0:00:15]}  f4 {[%clk 0:00:18]} 43. Kb3 {[%clk 0:00:06]}  fxe3 {[%clk 0:00:13]} 44. fxe3 {[%clk 0:00:07]}  Ke6 {[%clk 0:00:13]} 45. Kc3 {[%clk 0:00:07]}  Kf6 {[%clk 0:00:13]} 46. Kc4 {[%clk 0:00:04]}  Ke5 {[%clk 0:00:12]} 47. Kc3 {[%clk 0:00:04]}  Kd5 {[%clk 0:00:12]} 48. Kb3 {[%clk 0:00:04]}  Ke6 {[%clk 0:00:12]} 49. Kc3 {[%clk 0:00:04]}  Kd5 {[%clk 0:00:12]} 50. Kb3 {[%clk 0:00:04]}  Ke6 {[%clk 0:00:12]} 1/2-1/2


[Site "https://www.chess.com"]

[Event "Titled Tuesday Blitz March 07 Early 2023"]
[White "Preotu, Razvan"]
[Black "Hindermann, Felix"]
[WhiteFideId "2613280"]
[BlackFideId "1305212"]
[WhiteElo "2407"]
[BlackElo "2206"]
[Result "1-0"]
[Round "02"]
[TimeControl "180+2"]
[Date "2023.03.07"]
[WhiteClock "0:00:13"]
[BlackClock "0:00:11"]

1. e4 {[%clk 0:03:00]}  e6 {[%clk 0:02:54]} 2. d4 {[%clk 0:03:00]}  d5 {[%clk 0:02:53]} 3. Nc3 {[%clk 0:03:01]}  Bb4 {[%clk 0:02:50]} 4. e5 {[%clk 0:03:01]}  c5 {[%clk 0:02:48]} 5. a3 {[%clk 0:03:02]}  Ba5 {[%clk 0:02:49]} 6. b4 {[%clk 0:03:01]}  cxd4 {[%clk 0:02:49]} 7. Qg4 {[%clk 0:03:00]}  Ne7 {[%clk 0:02:49]} 8. Qxg7 {[%clk 0:02:43]}  Rg8 {[%clk 0:02:48]} 9. Qxh7 {[%clk 0:02:44]}  Bc7 {[%clk 0:02:48]} 10. Nb5 {[%clk 0:02:36]}  a6 {[%clk 0:02:48]} 11. Nxd4 {[%clk 0:02:27]}  Bxe5 {[%clk 0:02:47]} 12. Ngf3 {[%clk 0:02:27]}  Bf6 {[%clk 0:02:47]} 13. Bf4 {[%clk 0:01:58]}  Nbc6 {[%clk 0:02:46]} 14. Nxc6 {[%clk 0:01:55]}  bxc6 {[%clk 0:02:46]} 15. Be5 {[%clk 0:01:52]}  Rh8 {[%clk 0:02:40]} 16. Qd3 {[%clk 0:01:49]}  Nf5 {[%clk 0:02:37]} 17. Qc3 {[%clk 0:01:45]}  Bxe5 {[%clk 0:02:04]} 18. Nxe5 {[%clk 0:01:46]}  Qf6 {[%clk 0:01:13]} 19. Qxc6+ {[%clk 0:01:45]}  Kf8 {[%clk 0:01:13]} 20. f4 {[%clk 0:01:44]}  Qh4+ {[%clk 0:01:04]} 21. g3 {[%clk 0:01:44]}  Nxg3 {[%clk 0:01:04]} 22. O-O-O {[%clk 0:01:00]}  Qxf4+ {[%clk 0:01:01]} 23. Kb1 {[%clk 0:01:00]}  Nxh1 {[%clk 0:00:57]} 24. Qxa8 {[%clk 0:01:00]}  Qxe5 {[%clk 0:00:55]} 25. Qxc8+ {[%clk 0:00:59]}  Kg7 {[%clk 0:00:55]} 26. Qxa6 {[%clk 0:01:00]}  Rxh2 {[%clk 0:00:52]} 27. Bd3 {[%clk 0:00:58]}  Nf2 {[%clk 0:00:50]} 28. Rg1+ {[%clk 0:00:58]}  Kf6 {[%clk 0:00:49]} 29. Rf1 {[%clk 0:00:43]}  Kg7 {[%clk 0:00:50]} 30. Qa7 {[%clk 0:00:40]}  d4 {[%clk 0:00:25]} 31. Qe7 {[%clk 0:00:28]}  Rh1 {[%clk 0:00:11]} 32. Rxh1 {[%clk 0:00:26]}  Nxh1 {[%clk 0:00:11]} 33. Qh4 {[%clk 0:00:23]}  Ng3 {[%clk 0:00:08]} 34. b5 {[%clk 0:00:20]}  f5 {[%clk 0:00:07]} 35. b6 {[%clk 0:00:16]}  Ne4 {[%clk 0:00:07]} 36. b7 {[%clk 0:00:05]}  Nc3+ {[%clk 0:00:06]} 37. Kb2 {[%clk 0:00:06]}  Qc7 {[%clk 0:00:03]} 38. Qxd4+ {[%clk 0:00:05]}  e5 {[%clk 0:00:02]} 39. Qxc3 {[%clk 0:00:05]}  Qxb7+ {[%clk 0:00:03]} 40. Qb3 {[%clk 0:00:06]}  Qc7 {[%clk 0:00:02]} 41. Bxf5 {[%clk 0:00:05]}  Kf6 {[%clk 0:00:03]} 42. Be4 {[%clk 0:00:05]}  Qc5 {[%clk 0:00:03]} 43. Qd5 {[%clk 0:00:04]}  Qe3 {[%clk 0:00:03]} 44. a4 {[%clk 0:00:04]}  Kg5 {[%clk 0:00:02]} 45. a5 {[%clk 0:00:04]}  Kf4 {[%clk 0:00:03]} 46. Bd3 {[%clk 0:00:05]}  e4 {[%clk 0:00:03]} 47. Qxe4+ {[%clk 0:00:05]}  Qxe4 {[%clk 0:00:04]} 48. Bxe4 {[%clk 0:00:06]}  Kxe4 {[%clk 0:00:04]} 49. a6 {[%clk 0:00:07]}  Kd5 {[%clk 0:00:05]} 50. a7 {[%clk 0:00:08]}  Kc6 {[%clk 0:00:05]} 51. a8=Q+ {[%clk 0:00:08]}  Kb6 {[%clk 0:00:06]} 52. Qc8 {[%clk 0:00:09]}  Kb5 {[%clk 0:00:07]} 53. c4+ {[%clk 0:00:09]}  Kb4 {[%clk 0:00:07]} 54. c5 {[%clk 0:00:10]}  Ka5 {[%clk 0:00:08]} 55. c6 {[%clk 0:00:11]}  Kb6 {[%clk 0:00:09]} 56. Qb7+ {[%clk 0:00:11]}  Ka5 {[%clk 0:00:09]} 57. c7 {[%clk 0:00:11]}  Ka4 {[%clk 0:00:10]} 58. c8=Q {[%clk 0:00:12]}  Ka5 {[%clk 0:00:11]} 59. Qca8# {[%clk 0:00:13]} 1-0


[Site "https://www.chess.com"]

[Event "Titled Tuesday Blitz March 07 Early 2023"]
[White "Hernandez Gonzalez, William"]
[Black "Girsh, Daniel"]
[WhiteFideId "3509915"]
[BlackFideId "30949190"]
[WhiteElo "2374"]
[BlackElo "2075"]
[Result "1/2-1/2"]
[Round "02"]
[TimeControl "180+2"]
[Date "2023.03.07"]
[WhiteClock "0:00:10"]
[BlackClock "0:00:12"]

1. e4 {[%clk 0:03:00]}  e5 {[%clk 0:02:57]} 2. Nf3 {[%clk 0:03:00]}  Nc6 {[%clk 0:02:57]} 3. Bc4 {[%clk 0:03:00]}  Nf6 {[%clk 0:02:57]} 4. Ng5 {[%clk 0:03:00]}  d5 {[%clk 0:02:56]} 5. exd5 {[%clk 0:03:00]}  Na5 {[%clk 0:02:56]} 6. Bb5+ {[%clk 0:03:01]}  c6 {[%clk 0:02:56]} 7. dxc6 {[%clk 0:03:02]}  bxc6 {[%clk 0:02:56]} 8. Qf3 {[%clk 0:03:00]}  Bb7 {[%clk 0:02:54]} 9. Bd3 {[%clk 0:03:00]}  Bd6 {[%clk 0:02:52]} 10. O-O {[%clk 0:02:59]}  h6 {[%clk 0:02:52]} 11. Ne4 {[%clk 0:02:56]}  Nxe4 {[%clk 0:02:52]} 12. Bxe4 {[%clk 0:02:56]}  O-O {[%clk 0:02:50]} 13. d3 {[%clk 0:02:38]}  f5 {[%clk 0:02:35]} 14. Bxf5 {[%clk 0:02:38]}  Bc8 {[%clk 0:02:35]} 15. g4 {[%clk 0:02:25]}  g6 {[%clk 0:02:32]} 16. Bxh6 {[%clk 0:02:24]}  Rf7 {[%clk 0:02:26]} 17. Kh1 {[%clk 0:02:18]}  gxf5 {[%clk 0:02:26]} 18. gxf5 {[%clk 0:02:18]}  Qh4 {[%clk 0:02:18]} 19. Bg5 {[%clk 0:02:13]}  Qh7 {[%clk 0:02:05]} 20. f6 {[%clk 0:02:08]}  e4 {[%clk 0:02:05]} 21. Qg2 {[%clk 0:02:09]}  Bh3 {[%clk 0:02:01]} 22. Qg1 {[%clk 0:02:07]}  Qf5 {[%clk 0:01:42]} 23. Nd2 {[%clk 0:01:34]}  exd3 {[%clk 0:01:31]} 24. Bf4+ {[%clk 0:01:22]}  Kh7 {[%clk 0:01:31]} 25. Bxd6 {[%clk 0:01:18]}  Qd5+ {[%clk 0:01:29]} 26. f3 {[%clk 0:01:17]}  Qxd6 {[%clk 0:01:28]} 27. Ne4 {[%clk 0:01:16]}  Qd5 {[%clk 0:00:58]} 28. Ng5+ {[%clk 0:01:13]}  Kh8 {[%clk 0:00:58]} 29. Nxh3 {[%clk 0:01:11]}  Rxf6 {[%clk 0:00:45]} 30. Qg4 {[%clk 0:00:55]}  Qe6 {[%clk 0:00:22]} 31. Qxe6 {[%clk 0:00:38]}  Rxe6 {[%clk 0:00:23]} 32. cxd3 {[%clk 0:00:39]}  Rd8 {[%clk 0:00:23]} 33. Rf2 {[%clk 0:00:34]}  Re3 {[%clk 0:00:22]} 34. Ng5 {[%clk 0:00:30]}  Rdxd3 {[%clk 0:00:21]} 35. Rg1 {[%clk 0:00:30]}  Nc4 {[%clk 0:00:19]} 36. Rfg2 {[%clk 0:00:29]}  Re7 {[%clk 0:00:18]} 37. Rg4 {[%clk 0:00:23]}  Ne3 {[%clk 0:00:16]} 38. Rh4+ {[%clk 0:00:20]}  Kg8 {[%clk 0:00:17]} 39. Ne6+ {[%clk 0:00:15]}  Kf7 {[%clk 0:00:17]} 40. Nf4 {[%clk 0:00:13]}  Rd4 {[%clk 0:00:16]} 41. Rh7+ {[%clk 0:00:13]}  Ke8 {[%clk 0:00:15]} 42. Rg8+ {[%clk 0:00:14]}  Kd7 {[%clk 0:00:15]} 43. Rxe7+ {[%clk 0:00:14]}  Kxe7 {[%clk 0:00:16]} 44. Nh5 {[%clk 0:00:11]}  Rd2 {[%clk 0:00:13]} 45. b4 {[%clk 0:00:10]}  Rxa2 {[%clk 0:00:13]} 46. h4 {[%clk 0:00:11]}  Rb2 {[%clk 0:00:12]} 47. Ng3 {[%clk 0:00:10]}  Rxb4 {[%clk 0:00:13]} 48. h5 {[%clk 0:00:11]}  Rh4+ {[%clk 0:00:12]} 49. Kg1 {[%clk 0:00:11]}  Kf7 {[%clk 0:00:11]} 50. Rg5 {[%clk 0:00:11]}  Nd5 {[%clk 0:00:11]} 51. Kf2 {[%clk 0:00:06]}  a5 {[%clk 0:00:11]} 52. Rg4 {[%clk 0:00:05]}  Rxg4 {[%clk 0:00:10]} 53. fxg4 {[%clk 0:00:06]}  a4 {[%clk 0:00:10]} 54. Ne4 {[%clk 0:00:06]}  a3 {[%clk 0:00:10]} 55. Nd2 {[%clk 0:00:07]}  a2 {[%clk 0:00:10]} 56. Nb3 {[%clk 0:00:07]}  Kf6 {[%clk 0:00:10]} 57. Kf3 {[%clk 0:00:07]}  Kg5 {[%clk 0:00:10]} 58. Ke4 {[%clk 0:00:07]}  Nf6+ {[%clk 0:00:11]} 59. Kf3 {[%clk 0:00:07]}  Nxg4 {[%clk 0:00:11]} 60. Ke4 {[%clk 0:00:06]}  Kxh5 {[%clk 0:00:11]} 61. Kd4 {[%clk 0:00:07]}  Nf2 {[%clk 0:00:11]} 62. Kc5 {[%clk 0:00:07]}  Kg4 {[%clk 0:00:10]} 63. Kxc6 {[%clk 0:00:08]}  Kf4 {[%clk 0:00:11]} 64. Kb5 {[%clk 0:00:08]}  Ke3 {[%clk 0:00:11]} 65. Ka4 {[%clk 0:00:09]}  Kd3 {[%clk 0:00:12]} 66. Ka3 {[%clk 0:00:09]}  Kc3 {[%clk 0:00:12]} 67. Kxa2 {[%clk 0:00:10]} 1/2-1/2


[Site "https://www.chess.com"]

[Event "Titled Tuesday Blitz March 07 Early 2023"]
[White "Mushini Ajay"]
[Black "Orlov, Georgi"]
[WhiteFideId "35066188"]
[BlackFideId "2011271"]
[WhiteElo "2145"]
[BlackElo "2640"]
[Result "0-1"]
[Round "02"]
[TimeControl "180+2"]
[Date "2023.03.07"]
[WhiteClock "0:00:48"]
[BlackClock "0:01:14"]

1. e4 {[%clk 0:03:00]}  e6 {[%clk 0:02:45]} 2. d4 {[%clk 0:03:00]}  d5 {[%clk 0:02:44]} 3. Nd2 {[%clk 0:03:00]}  Be7 {[%clk 0:02:43]} 4. Bd3 {[%clk 0:02:58]}  c5 {[%clk 0:02:43]} 5. dxc5 {[%clk 0:02:58]}  Nf6 {[%clk 0:02:40]} 6. exd5 {[%clk 0:02:46]}  Qxd5 {[%clk 0:02:36]} 7. Ngf3 {[%clk 0:02:45]}  Bxc5 {[%clk 0:02:33]} 8. O-O {[%clk 0:02:45]}  Nc6 {[%clk 0:02:30]} 9. Qe2 {[%clk 0:02:35]}  Nb4 {[%clk 0:02:29]} 10. Ne4 {[%clk 0:02:30]}  Nxd3 {[%clk 0:02:27]} 11. Nxf6+ {[%clk 0:02:28]}  gxf6 {[%clk 0:02:27]} 12. cxd3 {[%clk 0:02:29]}  b6 {[%clk 0:02:23]} 13. d4 {[%clk 0:02:20]}  Bd6 {[%clk 0:02:22]} 14. Bh6 {[%clk 0:02:10]}  Bb7 {[%clk 0:02:19]} 15. Rfe1 {[%clk 0:02:04]}  Rg8 {[%clk 0:02:17]} 16. Kf1 {[%clk 0:01:49]}  a5 {[%clk 0:01:58]} 17. Rad1 {[%clk 0:01:20]}  Ba6 {[%clk 0:01:52]} 18. Rd3 {[%clk 0:01:20]}  Bxh2 {[%clk 0:01:43]} 19. Red1 {[%clk 0:01:14]}  Bd6 {[%clk 0:01:42]} 20. Qe3 {[%clk 0:01:09]}  Rc8 {[%clk 0:01:38]} 21. Kg1 {[%clk 0:01:03]}  Bxd3 {[%clk 0:01:33]} 22. Qxd3 {[%clk 0:01:02]}  Rg6 {[%clk 0:01:31]} 23. Bd2 {[%clk 0:00:53]}  Ke7 {[%clk 0:01:18]} 24. Bc3 {[%clk 0:00:48]}  Rcg8 {[%clk 0:01:14]} 0-1


[Site "https://www.chess.com"]

[Event "Titled Tuesday Blitz March 07 Early 2023"]
[White "Vasques, Antonio Pedro Freixial"]
[Black "Ozer, Omer Faruk"]
[WhiteFideId "1908332"]
[BlackFideId "6354564"]
[WhiteElo "2212"]
[BlackElo "2260"]
[Result "0-1"]
[Round "02"]
[TimeControl "180+2"]
[Date "2023.03.07"]
[WhiteClock "0:00:14"]
[BlackClock "0:01:28"]

1. Nf3 {[%clk 0:02:51]}  d5 {[%clk 0:02:57]} 2. g3 {[%clk 0:02:40]}  c6 {[%clk 0:02:57]} 3. Bg2 {[%clk 0:02:40]}  Bg4 {[%clk 0:02:57]} 4. O-O {[%clk 0:02:39]}  Nd7 {[%clk 0:02:56]} 5. c4 {[%clk 0:02:38]}  e6 {[%clk 0:02:54]} 6. d4 {[%clk 0:02:34]}  Ngf6 {[%clk 0:02:52]} 7. Qb3 {[%clk 0:02:14]}  Qb6 {[%clk 0:02:48]} 8. c5 {[%clk 0:02:14]}  Qa6 {[%clk 0:02:48]} 9. Nc3 {[%clk 0:02:10]}  Be7 {[%clk 0:02:43]} 10. Re1 {[%clk 0:02:10]}  b6 {[%clk 0:02:42]} 11. cxb6 {[%clk 0:01:56]}  axb6 {[%clk 0:02:43]} 12. e4 {[%clk 0:01:47]}  O-O {[%clk 0:02:39]} 13. Ne5 {[%clk 0:01:37]}  Nxe5 {[%clk 0:02:35]} 14. dxe5 {[%clk 0:01:38]}  Nd7 {[%clk 0:02:35]} 15. exd5 {[%clk 0:01:32]}  cxd5 {[%clk 0:02:34]} 16. Be3 {[%clk 0:01:24]}  Nc5 {[%clk 0:02:34]} 17. Qb5 {[%clk 0:01:24]}  Qxb5 {[%clk 0:02:16]} 18. Nxb5 {[%clk 0:01:24]}  Nd3 {[%clk 0:02:17]} 19. Rf1 {[%clk 0:00:56]}  Nxb2 {[%clk 0:02:01]} 20. Nd4 {[%clk 0:00:32]}  Nc4 {[%clk 0:01:59]} 21. Nc2 {[%clk 0:00:22]}  Bf5 {[%clk 0:01:56]} 22. Rfc1 {[%clk 0:00:17]}  Bxc2 {[%clk 0:01:49]} 23. Rxc2 {[%clk 0:00:18]}  Nxe3 {[%clk 0:01:49]} 24. fxe3 {[%clk 0:00:19]}  Bc5 {[%clk 0:01:50]} 25. Kf2 {[%clk 0:00:19]}  Ra3 {[%clk 0:01:49]} 26. Re1 {[%clk 0:00:17]}  Rfa8 {[%clk 0:01:48]} 27. Ree2 {[%clk 0:00:18]}  g5 {[%clk 0:01:46]} 28. g4 {[%clk 0:00:17]}  Kg7 {[%clk 0:01:39]} 29. h3 {[%clk 0:00:17]}  f6 {[%clk 0:01:34]} 30. exf6+ {[%clk 0:00:18]}  Kxf6 {[%clk 0:01:34]} 31. Bf3 {[%clk 0:00:18]}  Ke5 {[%clk 0:01:34]} 32. Kg3 {[%clk 0:00:18]}  Rxe3 {[%clk 0:01:31]} 33. Rxe3+ {[%clk 0:00:18]}  Bxe3 {[%clk 0:01:32]} 34. Be2 {[%clk 0:00:17]}  Ra3 {[%clk 0:01:31]} 35. Kg2 {[%clk 0:00:16]}  d4 {[%clk 0:01:28]} 36. Bf3 {[%clk 0:00:14]}  d3 {[%clk 0:01:28]} 0-1


[Site "https://www.chess.com"]